bitfinex/quotes_ETHUSD_20220226
["timestamp","ask_amount","ask_price","bid_price","bid_amount"]
[1645860462975,11.83957,2781.3,2781.0,7.21077776]
[1645860462976,11.94,2781.1,2781.0,7.21077776]
[1645860463975,11.94,2781.1,2781.0,5.00138382]
[1645860464176,10.94,2780.8,2780.5,1.11565376]
[1645860464380,10.94,2780.6,2780.5,1.11565376]
[1645860464581,10.94141063,2780.6,2780.5,1.11565376]
[1645860465379,14.44141063,2780.6,2780.5,1.11565376]
[1645860465621,10.94141063,2780.6,2780.5,1.11565376]
[1645860466626,14.44141063,2780.6,2780.5,1.11565376]
[1645860467727,10.94141063,2780.6,2780.5,1.11565376]
[1645860470170,10.94141063,2780.6,2780.5,1.13848695]
[1645860471776,11.08521063,2780.6,2780.5,1.13848695]
[1645860472582,14.58521063,2780.6,2780.5,1.13848695]
[1645860472781,15.06037321,2780.6,2780.5,1.13848695]
[1645860474029,11.56037321,2780.6,2780.5,1.13848695]
[1645860474428,15.06037321,2780.6,2780.5,1.13848695]
[1645860474828,15.06037321,2780.6,2780.5,1.11565376]
[1645860475027,11.56037321,2780.6,2780.5,1.11565376]
[1645860476776,11.56037321,2780.6,2780.5,1.87775784]
[1645860476777,12.16205226,2780.6,2780.5,1.87775784]
[1645860477368,12.16205226,2780.6,2780.5,1.11565376]
[1645860477770,12.16205226,2780.6,2780.5,1.87820237]
[1645860479873,1.22205226,2780.6,2780.5,1.87820237]
[1645860480281,0.92205226,2780.6,2780.5,1.87820237]
[1645860480526,0.74688968,2780.6,2780.5,1.87820237]
[1645860481733,11.68688968,2780.6,2780.5,1.87820237]
[1645860482131,0.74688968,2780.6,2780.5,1.87820237]
[1645860483035,11.68688968,2780.6,2780.5,1.87820237]
[1645860483235,11.68688968,2780.6,2780.5,1.87278015]
[1645860483236,15.18688968,2780.6,2780.5,1.87278015]
[1645860483634,11.68688968,2780.6,2780.5,1.87278015]
[1645860485684,15.18688968,2780.6,2780.5,1.87278015]
[1645860486081,16.18688968,2780.6,2780.5,1.87278015]
[1645860487786,12.68688968,2780.6,2780.5,1.87195784]
[1645860488232,1.74688968,2780.6,2780.5,1.87195784]
[1645860488428,11.68688968,2780.6,2780.5,1.87195784]
[1645860488628,0.74688968,2780.6,2780.5,1.87195784]
[1645860489434,11.68688968,2780.6,2780.5,1.87195784]
[1645860489831,11.68688968,2780.6,2780.5,1.8719112]
[1645860490032,11.68688968,2780.6,2780.5,1.11483145]
[1645860490432,11.68688968,2780.6,2780.5,1.87191791]
[1645860490632,11.68688968,2780.6,2780.5,1.87191662]
[1645860490836,11.68688968,2780.6,2780.5,1.11483145]
[1645860491031,11.68688968,2780.6,2780.5,1.87192191]
[1645860491233,11.68688968,2780.6,2780.5,1.11483145]
[1645860491433,11.68688968,2780.6,2780.5,1.87191967]
[1645860491632,11.68688968,2780.6,2780.5,1.11483145]
[1645860492076,11.68688968,2780.6,2780.5,1.871912]
[1645860492278,11.68688968,2780.6,2780.3,0.0195713]
[1645860492579,10.18288964,2780.4,2780.3,0.0195713]
[1645860492876,10.18430027,2780.4,2780.3,0.0195713]
[1645860493680,10.18430027,2780.4,2778.0,3.70722189]
[1645860493681,17.18288964,2780.2,2778.0,3.70722189]
[1645860493891,17.18288964,2780.2,2777.1,2.27648268]
[1645860493892,5.0,2778.7,2777.1,2.27648268]
[1645860494096,0.88465614,2779.3,2776.6,6.2851351]
[1645860494097,0.01244733,2777.6,2777.5,0.68311123]
[1645860494282,0.01244733,2777.6,2777.2,1.65528226]
[1645860494283,1.0,2777.3,2777.2,1.65528226]
[1645860494485,1.0,2777.3,2776.5,0.92943774]
[1645860494688,1.0,2776.8,2776.5,0.25]
[1645860494885,1.0,2776.8,2776.2,20.0]
[1645860494886,6.488,2776.6,2776.2,20.0]
[1645860495086,10.94,2776.5,2776.2,20.0]
[1645860495284,11.94,2776.3,2776.2,3.725e-05]
[1645860495529,10.94,2776.1,2775.5,0.25]
[1645860495735,11.507,2776.3,2775.1,0.67943774]
[1645860495736,6.488,2775.8,2775.1,0.67943774]
[1645860495934,6.488,2775.8,2774.9,0.3596]
[1645860495935,2.3219266,2775.7,2774.9,0.3596]
[1645860496137,2.3219266,2775.7,2774.6,1.11672602]
[1645860496138,1.80291,2775.5,2774.6,1.11672602]
[1645860496433,1.803,2775.1,2775.0,0.04092649]
[1645860496634,2.322,2775.1,2775.0,0.04092649]
[1645860496834,2.322,2775.1,2774.6,0.04320018]
[1645860497236,1.80321,2775.0,2774.6,0.04320018]
[1645860497437,12.74321,2775.0,2774.9,0.00502005]
[1645860497634,16.94,2774.9,2774.5,0.02008322]
[1645860497836,10.94,2774.7,2774.5,0.02008322]
[1645860498035,0.519,2774.6,2774.5,0.02008322]
[1645860498234,0.519,2774.6,2774.0,0.04999999]
[1645860498434,0.519,2774.6,2774.5,0.0437686]
[1645860498639,12.36062,2774.6,2774.5,0.0437686]
[1645860499036,0.0875372,2774.1,2773.1,0.3596]
[1645860499476,0.0875372,2774.1,2773.3,0.3596]
[1645860499878,0.0875372,2774.1,2774.0,0.3596]
[1645860500878,0.0875372,2774.1,2773.3,0.36283871]
[1645860501078,0.0875372,2774.1,2773.8,0.3596]
[1645860502179,0.0875372,2774.1,2773.8,0.00501766]
[1645860502378,0.0875372,2774.1,2774.0,1.38937268]
[1645860502580,0.0875372,2774.1,2773.8,0.00501766]
[1645860503016,0.0875372,2774.1,2773.3,0.36283871]
[1645860503220,0.0875372,2774.1,2773.3,0.66283871]
[1645860503422,0.0875372,2774.1,2773.8,0.00501766]
[1645860504223,0.0875372,2774.1,2773.3,0.00323871]
[1645860504429,0.0875372,2774.1,2773.2,7.2108]
[1645860504624,0.0875372,2774.1,2773.3,0.00323871]
[1645860504824,0.90185,2773.9,2773.3,0.00323871]
[1645860505325,0.90185,2773.9,2773.2,8.1372234]
[1645860505727,2.5817769,2774.0,2773.2,8.1372234]
[1645860505728,3.4376769,2774.0,2773.2,8.1372234]
[1645860505930,2.4376769,2774.0,2773.2,13.1372234]
[1645860506125,2.4376769,2774.0,2773.6,5.0]
[1645860506331,2.4376769,2774.0,2773.7,1.07413465]
[1645860506528,0.1442,2775.2,2773.9,7.0]
[1645860506773,0.1441,2775.5,2773.9,7.6596]
[1645860506970,0.1441,2775.6,2773.9,7.6596]
[1645860507576,0.519,2775.7,2773.9,7.6596]
[1645860507775,0.519,2775.7,2775.0,1.32354979]
[1645860507974,0.519,2775.7,2773.9,7.6596]
[1645860508174,0.519,2775.7,2774.7,0.00501349]
[1645860508379,3.5,2775.6,2774.7,0.00501349]
[1645860508578,0.90135,2775.4,2774.7,0.00501349]
[1645860509178,0.90135,2775.4,2773.9,7.55]
[1645860509380,0.90135,2775.4,2774.8,0.00501355]
[1645860509779,0.1441,2775.3,2774.8,0.00501355]
[1645860510378,0.1441,2775.3,2773.9,7.25]
[1645860510631,0.1441,2775.3,2774.8,0.00501355]
[1645860510830,0.1441,2775.5,2774.8,0.00501355]
[1645860511232,3.6441,2775.5,2774.8,0.00501355]
[1645860511433,8.15122,2775.5,2774.8,0.00501355]
[1645860511635,0.90144,2775.1,2774.0,0.00322146]
[1645860511931,0.90144,2775.1,2774.8,0.00501364]
[1645860512931,0.90144,2775.1,2773.7,0.00322146]
[1645860513134,0.90144,2775.1,2774.8,0.00501345]
[1645860513734,0.00678878,2774.6,2774.4,0.02005645]
[1645860513935,0.00678878,2774.6,2773.8,1.20923081]
[1645860513936,0.90144,2775.1,2775.0,19.99321122]
[1645860515775,0.1441,2775.3,2775.0,19.99321122]
[1645860515974,3.56444,2775.4,2775.0,19.99321122]
[1645860517677,14.50444,2775.4,2775.0,19.99321122]
[1645860518739,5.0,2775.1,2775.0,14.50359782]
[1645860518943,10.94,2774.9,2774.7,0.00501387]
[1645860519137,10.93498613,2774.5,2774.2,0.00322146]
[1645860519336,14.95398613,2774.4,2774.0,0.0200602]
[1645860519540,0.519,2774.4,2774.0,0.0200602]
[1645860519737,1.519,2774.4,2774.0,0.0200602]
[1645860519937,11.459,2774.4,2773.6,0.00322146]
[1645860520140,11.8186,2774.4,2773.6,0.00322146]
[1645860520339,1.8786,2774.4,2773.6,0.00322146]
[1645860520537,1.519,2774.4,2773.6,0.00322146]
[1645860520738,0.519,2774.4,2773.6,0.00322146]
[1645860521342,4.019,2774.7,2773.6,0.00322146]
[1645860521537,0.519,2774.7,2773.6,0.00322146]
[1645860521775,1.519,2774.7,2773.6,0.00322146]
[1645860521978,0.519,2774.7,2773.7,1.1606122]
[1645860522179,0.519,2774.7,2773.8,0.00322146]
[1645860522376,0.519,2774.7,2773.4,0.25]
[1645860522377,0.8786,2774.7,2773.5,0.00322146]
[1645860522577,0.8786,2774.7,2774.1,0.00501046]
[1645860522777,0.519,2774.7,2774.1,0.00501046]
[1645860523178,1.0,2774.5,2774.1,0.00501046]
[1645860523578,1.0,2774.5,2773.5,0.00322146]
[1645860523780,1.0,2774.5,2774.2,0.00501037]
[1645860524683,1.0,2774.5,2773.7,0.00322146]
[1645860525081,1.0,2774.5,2774.2,0.00501033]
[1645860525865,1.0,2774.5,2773.7,0.00322146]
[1645860526264,1.0,2774.5,2774.2,0.00501033]
[1645860527064,1.0,2774.5,2773.7,0.00322146]
[1645860527467,1.0,2774.5,2774.2,0.00501033]
[1645860527666,2.8033,2774.5,2774.2,0.00501033]
[1645860528067,3.8033,2774.5,2774.2,0.00501033]
[1645860528269,4.1629,2774.5,2773.5,0.00322146]
[1645860528669,3.8033,2774.5,2774.2,0.00236976]
[1645860529068,14.7433,2774.5,2774.2,0.00236976]
[1645860529271,15.64506,2774.5,2774.2,0.00236976]
[1645860529479,15.95466,2774.5,2773.5,0.00322146]
[1645860529678,5.01466,2774.5,2773.5,0.00322146]
[1645860529883,3.7533,2774.5,2774.2,0.00236976]
[1645860530282,1.0,2774.5,2774.2,0.00236976]
[1645860530682,1.0,2774.5,2773.6,0.3596]
[1645860530881,1.0,2774.5,2773.7,0.00322146]
[1645860531083,1.0,2774.5,2774.2,1.09058211]
[1645860531285,1.0,2774.5,2774.2,0.00501408]
[1645860532082,1.0,2774.5,2773.7,0.00322146]
[1645860532288,1.0,2774.5,2774.2,0.00501408]
[1645860533224,1.0,2774.5,2773.9,1.32334772]
[1645860533423,1.0,2774.5,2774.2,0.00501408]
[1645860534423,1.0,2774.5,2773.8,0.00322146]
[1645860534627,1.0,2774.5,2774.2,0.00501408]
[1645860534824,0.00678767,2774.1,2773.8,0.02005933]
[1645860535627,0.00678767,2774.1,2773.5,1.43759699]
[1645860536125,0.00678767,2774.1,2773.3,0.00322146]
[1645860537181,1.36638767,2774.1,2773.3,0.00322146]
[1645860537986,0.36638767,2774.1,2773.3,0.00322146]
[1645860538185,0.36638767,2774.1,2773.6,0.00236656]
[1645860538588,1.0,2774.0,2773.6,0.00236656]
[1645860539189,1.0,2774.0,2773.3,0.00322146]
[1645860539386,1.0,2774.0,2773.7,0.00501455]
[1645860539987,0.00678767,2774.1,2773.7,0.00501455]
[1645860540388,0.00678767,2774.1,2773.3,0.00322146]
[1645860540389,1.52322036,2774.0,2773.3,0.00322146]
[1645860540624,1.52322036,2774.0,2773.8,0.00501446]
[1645860541529,1.52322036,2774.0,2773.3,0.00322146]
[1645860541728,1.52322036,2774.0,2773.8,0.00501446]
[1645860542732,1.52322036,2774.0,2773.3,0.00322146]
[1645860542930,1.52322036,2774.0,2773.8,0.00501446]
[1645860543931,1.52322036,2774.0,2773.3,0.00322146]
[1645860544131,1.52322036,2774.0,2773.8,0.00501446]
[1645860544781,2.00678767,2774.1,2773.8,0.00501446]
[1645860544981,1.00678767,2774.1,2773.8,0.00501446]
[1645860545183,1.00678767,2774.1,2773.3,0.00322146]
[1645860545385,1.00678767,2774.1,2773.8,0.00501442]
[1645860545584,0.00678767,2774.1,2773.8,0.00501442]
[1645860546384,1.00678767,2774.1,2773.3,0.00322146]
[1645860546587,1.00678767,2774.1,2773.8,0.00501442]
[1645860547583,1.00678767,2774.1,2773.3,0.00322146]
[1645860547784,0.4609124,2774.1,2773.8,0.00501442]
[1645860548031,0.1441,2774.4,2773.8,0.00501442]
[1645860548233,1.52315338,2774.3,2773.8,0.00501442]
[1645860548834,1.52315338,2774.3,2773.3,0.89046813]
[1645860549035,1.52315338,2774.3,2773.9,0.00501433]
[1645860549234,0.1441,2774.4,2773.9,0.00501433]
[1645860549434,0.3596,2774.5,2773.9,0.00501433]
[1645860549635,1.88276259,2774.4,2773.9,0.00501433]
[1645860549933,1.52316259,2774.3,2773.5,0.00322146]
[1645860550133,12.46316259,2774.3,2774.0,0.00501425]
[1645860550332,1.52316259,2774.2,2774.0,0.00501425]
[1645860550939,3.26412,2774.5,2774.0,0.00501425]
[1645860551136,3.26412,2774.5,2773.6,0.02006017]
[1645860551137,1.5232139,2774.4,2773.3,0.89046813]
[1645860551336,1.8828139,2774.4,2773.3,0.89046813]
[1645860551536,1.5232139,2774.3,2774.0,0.00501429]
[1645860551798,0.4608,2774.5,2774.0,0.00501429]
[1645860551988,4.79724915,2775.1,2774.1,0.519]
[1645860551989,2.91361225,2775.1,2774.1,0.519]
[1645860552191,1.52295697,2775.0,2774.1,0.519]
[1645860552389,1.52295697,2775.0,2774.2,0.00322146]
[1645860552592,1.52295697,2774.9,2774.3,0.519]
[1645860552790,0.00265123,2775.1,2774.7,1.39968433]
[1645860553590,1.52289479,2775.3,2774.7,1.39968433]
[1645860553791,5.80824454,2776.1,2774.7,1.91868433]
[1645860553792,0.4608,2775.7,2774.7,1.91868433]
[1645860553993,2.84865282,2776.3,2774.7,1.91868433]
[1645860553994,1.52266097,2775.6,2774.9,7.0]
[1645860554191,0.54899997,2776.3,2775.0,4.02222146]
[1645860554392,1.52243945,2776.2,2775.0,4.02222146]
[1645860554793,1.52243945,2776.2,2775.8,1.25720905]
[1645860554993,0.36670234,2775.7,2775.5,0.519]
[1645860556423,0.36670234,2775.7,2775.6,1.43114593]
[1645860560785,0.36670234,2775.7,2775.1,0.8786]
[1645860560989,0.36670234,2775.7,2775.1,1.1786]
[1645860561790,0.36670234,2775.7,2775.5,1.22717712]
[1645860563428,0.37171132,2775.7,2775.5,1.22717712]
[1645860563632,0.15712111,2775.7,2775.1,0.8786]
[1645860563931,0.15712111,2775.7,2775.1,0.519]
[1645860564129,0.15712111,2775.7,2775.0,0.55]
[1645860564130,0.15712111,2775.7,2775.0,0.25]
[1645860564329,0.15712111,2775.7,2774.7,0.3]
[1645860564330,0.15211213,2775.7,2774.7,0.3]
[1645860564729,0.00500915,2775.5,2774.8,7.3048]
[1645860565529,0.15211213,2775.7,2774.8,7.3048]
[1645860565728,0.00500937,2775.3,2774.8,7.3048]
[1645860566889,0.15211213,2775.7,2775.0,1.41924105]
[1645860567089,0.00500936,2775.2,2775.0,1.41924105]
[1645860568090,0.15211213,2775.7,2775.0,1.41924105]
[1645860568289,0.00500941,2775.2,2775.0,1.41924105]
[1645860568489,0.00500941,2775.2,2774.8,7.3048]
[1645860569090,0.51171213,2775.7,2774.8,7.3048]
[1645860569291,0.15211213,2775.7,2774.8,7.3048]
[1645860569495,9.31e-06,2775.2,2774.9,0.3596]
[1645860569691,9.31e-06,2775.2,2775.1,0.3596]
[1645860569891,9.31e-06,2775.2,2775.1,0.8786]
[1645860570191,9.31e-06,2775.2,2775.1,13.4825]
[1645860570390,0.15211213,2775.7,2775.1,13.4825]
[1645860571437,0.15211213,2775.7,2775.1,8.4825]
[1645860571640,0.15211213,2775.7,2775.1,8.1229]
[1645860573636,0.15211213,2775.7,2775.1,7.8229]
[1645860574295,0.00500915,2775.5,2775.2,0.19410774]
[1645860574479,0.8204,2776.6,2775.5,7.0]
[1645860574480,0.4608,2776.6,2775.5,7.0]
[1645860574679,6.2458,2777.1,2775.5,7.519]
[1645860574884,6.2458,2777.1,2775.9,5.0]
[1645860574885,1.52358927,2777.0,2775.9,5.0]
[1645860575083,1.52358927,2777.0,2776.3,1.236878]
[1645860575284,1.52217864,2776.9,2776.3,1.236878]
[1645860575586,0.00141063,2776.9,2776.3,1.236878]
[1645860576186,0.36101063,2776.9,2776.3,1.236878]
[1645860577591,1.52219023,2776.8,2775.9,5.0]
[1645860577888,1.52360086,2776.8,2775.9,5.3]
[1645860578642,0.00141063,2776.8,2776.1,1.0143803]
[1645860578842,0.00141063,2776.8,2776.1,1.3143803]
[1645860579043,0.00499377,2776.5,2776.1,1.3143803]
[1645860579549,9.377e-05,2776.5,2776.2,0.519]
[1645860579745,9.377e-05,2776.5,2776.4,5.48208257]
[1645860579948,7.8015044,2777.8,2776.5,7.1899919]
[1645860580148,7.8015044,2777.8,2776.8,5.0]
[1645860580349,7.8015044,2777.8,2777.4,1.22438185]
[1645860580547,7.45,2777.8,2777.4,1.22438185]
[1645860581149,7.4,2777.8,2777.3,0.3]
[1645860581348,7.4,2777.8,2777.2,0.519]
[1645860581349,0.3596,2778.2,2777.2,0.519]
[1645860581548,0.3596,2778.2,2777.0,0.519]
[1645860582188,7.45,2778.4,2777.0,1.86524271]
[1645860582189,0.3596,2778.1,2777.0,1.86524271]
[1645860582391,3.5,2778.3,2777.0,1.34624271]
[1645860582392,0.3596,2777.9,2777.0,1.34624271]
[1645860582789,0.3096,2777.9,2777.0,1.34624271]
[1645860583389,0.3096,2778.1,2777.0,1.34624271]
[1645860583591,0.3096,2777.9,2776.9,0.3]
[1645860583789,0.00499283,2777.6,2776.8,0.3]
[1645860584790,0.3096,2777.8,2776.8,0.3]
[1645860585294,0.00499305,2777.3,2776.8,0.3]
[1645860585734,0.00499305,2777.3,2777.0,1.30834251]
[1645860585932,0.3096,2778.1,2777.0,1.30834251]
[1645860586133,4.5,2778.2,2777.0,1.30834251]
[1645860586134,0.3096,2777.9,2777.0,1.30834251]
[1645860586334,0.00499317,2777.2,2777.0,1.30834251]
[1645860587239,0.3096,2778.1,2777.0,1.30834251]
[1645860587439,0.00499313,2777.2,2777.0,1.30834251]
[1645860587840,0.00499313,2777.2,2776.6,5.5029]
[1645860588038,0.00499313,2777.2,2776.7,7.2998]
[1645860588442,0.3096,2778.0,2776.7,7.2998]
[1645860588839,0.00499326,2777.1,2776.8,1.30044765]
[1645860589293,0.00499326,2777.1,2776.9,7.2993]
[1645860590084,0.00499322,2777.1,2776.9,7.2993]
[1645860590888,0.3096,2777.9,2776.9,7.2993]
[1645860591285,0.0046754,2777.1,2776.9,7.2993]
[1645860591885,0.0046754,2777.1,2776.9,7.8183]
[1645860593240,0.3596,2778.3,2776.9,7.8183]
[1645860593437,8.96274774,2778.4,2776.9,8.1779]
[1645860593637,0.0046754,2777.1,2776.9,8.1779]
[1645860593839,7.54e-05,2777.1,2777.0,5.3596]
[1645860594038,7.54e-05,2777.1,2777.0,6.1786]
[1645860594238,7.54e-05,2777.1,2777.0,14.4776]
[1645860594439,7.45,2778.4,2777.0,14.4776]
[1645860594637,7.45,2778.4,2777.4,5.0]
[1645860594841,7.45,2778.4,2777.4,5.819]
[1645860595238,7.45,2778.4,2777.8,1.20997168]
[1645860595639,7.45,2778.4,2777.8,2.31097168]
[1645860596239,0.00262218,2778.2,2777.8,2.31097168]
[1645860596442,0.00262218,2778.2,2777.8,2.82997168]
[1645860596877,7.45,2778.4,2777.8,2.82997168]
[1645860597279,0.00262218,2778.1,2777.8,2.82997168]
[1645860598084,7.45,2778.4,2777.8,1.62]
[1645860598281,7.45,2778.4,2777.8,0.819]
[1645860598282,0.0049924,2778.1,2777.8,0.819]
[1645860599286,7.45,2778.4,2777.8,0.819]
[1645860599686,0.0049924,2778.1,2777.8,0.819]
[1645860600637,7.45,2778.4,2777.8,0.819]
[1645860600836,0.00475859,2778.1,2777.8,0.819]
[1645860601836,7.45,2778.4,2777.8,0.819]
[1645860602036,0.00475859,2778.1,2777.8,0.819]
[1645860602840,7.45,2778.4,2777.8,0.819]
[1645860603242,0.00475859,2778.1,2777.8,0.819]
[1645860604141,7.45,2778.4,2777.8,0.819]
[1645860604377,0.0049924,2778.1,2777.8,0.819]
[1645860605380,7.45,2778.4,2777.8,0.819]
[1645860605777,0.0049924,2778.1,2777.8,0.819]
[1645860606180,0.01996289,2779.0,2778.0,5.3596]
[1645860606382,0.01996289,2779.0,2778.2,5.3596]
[1645860606580,0.01996289,2779.0,2778.3,4.019]
[1645860606781,0.01996289,2779.0,2778.4,5.0]
[1645860606977,0.01996289,2779.0,2778.5,3.5]
[1645860607177,7.4045,2779.8,2779.2,1.42913147]
[1645860607378,7.5939,2779.9,2778.6,4.24655286]
[1645860607379,1.5208862,2779.7,2778.6,4.24655286]
[1645860607578,1.5208862,2779.6,2779.2,1.10456856]
[1645860607778,1.5208862,2779.6,2778.5,4.1]
[1645860607779,1.5208862,2779.5,2778.5,3.8]
[1645860608051,0.00229865,2779.6,2779.3,5.0]
[1645860608252,0.00919323,2780.1,2779.4,12.519]
[1645860608451,0.00919323,2780.1,2779.5,0.519]
[1645860608952,0.3512,2780.6,2779.9,1.14962007]
[1645860609155,1.52037307,2780.5,2779.9,1.14962007]
[1645860609353,1.52037307,2780.5,2780.2,3.30863217]
[1645860609554,0.3512,2780.6,2780.2,3.30863217]
[1645860609754,0.3512,2780.6,2780.2,3.60863217]
[1645860610558,0.3512,2780.6,2780.2,3.30863217]
[1645860610955,1.52046628,2780.5,2780.2,3.30863217]
[1645860611786,1.52308223,2780.5,2780.2,3.30863217]
[1645860612379,2.43310868,2780.1,2780.0,3.30863217]
[1645860612579,14.89357496,2780.1,2780.0,3.30863217]
[1645860612778,3.95357496,2780.1,2780.0,3.30863217]
[1645860612978,5.41437496,2780.1,2780.0,2.42073217]
[1645860613187,0.3596,2779.9,2778.6,1.0]
[1645860613382,4.96568536,2780.1,2778.6,1.0]
[1645860613383,0.3596,2779.3,2778.6,1.0]
[1645860613980,0.3596,2779.3,2778.2,2.05648694]
[1645860614183,0.4608,2779.4,2778.2,2.05648694]
[1645860614481,0.01997395,2779.5,2778.2,2.05648694]
[1645860614883,1.52101692,2779.4,2778.2,2.05648694]
[1645860615083,0.3596,2779.4,2778.2,2.05648694]
[1645860615283,0.3596,2779.4,2778.2,0.78027823]
[1645860615284,0.3795743,2779.4,2778.2,0.78027823]
[1645860616032,0.3795743,2779.4,2778.2,0.25]
[1645860616232,0.3596,2779.4,2778.2,1.56759823]
[1645860616433,0.37957447,2779.4,2778.2,1.56759823]
[1645860617434,0.36101063,2779.4,2778.2,1.56759823]
[1645860617636,0.3809851,2779.4,2778.2,1.56759823]
[1645860617935,0.3809851,2779.4,2778.2,1.86759823]
[1645860617936,0.0213851,2779.4,2778.2,1.86759823]
[1645860618143,0.0213851,2779.4,2778.3,0.519]
[1645860618345,0.0213851,2779.4,2778.3,4.319]
[1645860618543,0.00141063,2779.4,2778.3,4.319]
[1645860618942,0.02138493,2779.4,2778.3,4.319]
[1645860619394,0.02138493,2779.4,2778.8,1.21189433]
[1645860619793,0.00141063,2779.4,2778.8,1.21189433]
[1645860619994,0.00141063,2779.4,2778.9,7.2941]
[1645860626049,1.52213549,2779.4,2778.9,7.2941]
[1645860627305,1.52213549,2779.4,2778.9,5.67172171]
[1645860627807,1.98293549,2779.4,2778.9,5.67172171]
[1645860628007,1.52072486,2779.3,2778.9,5.67172171]
[1645860628205,1.52213549,2779.3,2778.9,5.67172171]
[1645860630414,12.92293549,2779.3,2778.9,5.67172171]
[1645860630647,10.94,2779.1,2778.9,5.67172171]
[1645860630846,12.92152486,2779.0,2778.9,5.67172171]
[1645860631044,12.92293549,2779.0,2778.9,5.67172171]
[1645860631245,14.36683549,2779.0,2778.9,5.67172171]
[1645860631454,14.56268661,2779.0,2778.9,0.77122171]
[1645860631652,16.36334661,2779.0,2778.9,0.77122171]
[1645860632952,3.42683549,2779.0,2778.9,0.77122171]
[1645860633154,3.12683549,2779.0,2778.9,0.77122171]
[1645860633452,2.98293549,2779.0,2778.9,0.77122171]
[1645860635610,1.98293549,2779.0,2778.9,0.77122171]
[1645860635809,1.52213549,2779.0,2778.9,0.77122171]
[1645860636008,0.00141063,2779.0,2778.9,0.77122171]
[1645860638653,0.00141063,2779.0,2778.9,1.26532945]
[1645860638852,0.00141063,2779.0,2778.9,2.45603953]
[1645860639051,0.00141063,2779.0,2778.9,2.26193179]
[1645860639254,0.00141063,2779.0,2778.9,2.62153179]
[1645860639451,0.00141063,2779.0,2778.9,3.14053179]
[1645860639654,0.00141063,2779.0,2778.9,4.14053179]
[1645860640054,0.00141063,2779.0,2778.9,7.64053179]
[1645860640255,0.00141063,2779.0,2778.9,4.14053179]
[1645860642796,0.00141063,2779.0,2778.9,3.78093179]
[1645860643397,0.00141063,2779.0,2778.9,2.84053179]
[1645860644595,0.00141063,2779.0,2778.9,3.14053179]
[1645860644996,0.00141063,2779.0,2778.9,2.78093179]
[1645860645646,0.00141063,2779.0,2778.9,1.59022171]
[1645860647445,0.00141063,2779.0,2778.9,2.86078702]
[1645860647650,0.00141063,2779.0,2778.9,1.59022171]
[1645860647948,0.00141063,2779.0,2778.9,1.07122171]
[1645860649497,0.00141063,2779.0,2778.9,0.77122171]
[1645860650504,0.00141063,2779.0,2778.5,0.819]
[1645860650505,0.55099595,2778.8,2778.5,0.819]
[1645860650705,0.55240658,2778.8,2778.5,0.819]
[1645860651107,0.55240658,2778.8,2778.6,7.1977]
[1645860657092,0.55240658,2778.8,2778.7,0.1439]
[1645860657293,0.55240658,2778.8,2778.7,1.3225]
[1645860657494,0.55240658,2778.8,2778.7,8.5201]
[1645860658597,0.01874693,2779.3,2778.9,0.3596]
[1645860658796,0.01874693,2779.3,2779.0,0.8786]
[1645860658997,0.01874693,2779.3,2779.0,1.1786]
[1645860659396,0.00401082,2780.0,2779.0,1.1786]
[1645860659596,1.52452287,2780.0,2779.0,1.1786]
[1645860659798,0.02343189,2779.7,2779.2,1.25364421]
[1645860660001,1.52051205,2779.6,2779.2,1.25364421]
[1645860660197,1.52051205,2779.6,2779.2,1.55364421]
[1645860660655,1.52051205,2779.6,2779.2,1.91324421]
[1645860660859,0.00468654,2779.7,2779.2,2.43224421]
[1645860661056,1.52051205,2779.6,2779.2,2.43224421]
[1645860662062,0.00468665,2779.7,2779.2,2.97674701]
[1645860662260,1.52046706,2779.6,2779.2,2.61714701]
[1645860662861,0.00468665,2779.7,2779.2,2.61714701]
[1645860663067,0.00401082,2780.0,2779.2,2.61714701]
[1645860663263,0.00468665,2779.7,2779.3,0.3596]
[1645860663464,0.00468665,2779.7,2779.3,0.8786]
[1645860664165,0.00401082,2779.9,2779.3,0.8786]
[1645860664401,1.52038873,2780.0,2779.3,0.8786]
[1645860664600,1.52439955,2780.0,2779.3,0.519]
[1645860664801,0.00468673,2779.7,2779.3,0.519]
[1645860665203,0.00468673,2779.7,2779.4,7.1958]
[1645860665401,0.00401082,2779.9,2779.4,7.1958]
[1645860665600,1.52043178,2780.0,2779.4,7.4958]
[1645860665800,0.00437829,2779.7,2779.4,7.4958]
[1645860666602,0.00401082,2780.0,2779.4,7.4958]
[1645860666802,1.52044155,2780.0,2779.4,7.4958]
[1645860669351,0.0046784,2779.8,2779.4,7.4958]
[1645860669549,1.52044155,2779.7,2779.4,7.4958]
[1645860670552,0.00484665,2779.7,2779.4,7.4958]
[1645860671049,1.52052736,2779.6,2779.4,7.4958]
[1645860671651,0.0048466,2779.7,2779.4,7.4958]
[1645860671900,1.52051698,2779.6,2779.4,7.4958]
[1645860672304,0.0048466,2779.7,2779.4,7.4958]
[1645860672504,1.52051207,2779.6,2779.4,7.4958]
[1645860672907,0.00484665,2779.7,2779.4,7.4958]
[1645860673602,1.52051682,2779.6,2779.4,7.4958]
[1645860674007,0.00401082,2780.0,2779.4,7.4958]
[1645860674205,0.00466764,2779.7,2779.4,7.4958]
[1645860674404,1.52051031,2779.6,2779.4,7.4958]
[1645860675205,0.00401082,2780.0,2779.4,7.4958]
[1645860675408,0.0046676,2779.7,2779.4,7.4958]
[1645860675645,1.52051067,2779.6,2779.4,7.4958]
[1645860676549,3.86361082,2780.0,2779.4,5.57385068]
[1645860676550,1.52051067,2779.5,2779.4,5.57385068]
[1645860676951,1.52051067,2779.6,2779.4,5.57385068]
[1645860677150,1.52051067,2779.5,2779.4,5.57385068]
[1645860677553,1.52051067,2779.6,2779.4,5.57385068]
[1645860677750,1.52051067,2779.5,2779.4,5.57385068]
[1645860678352,1.52051067,2779.6,2779.4,5.57385068]
[1645860678553,1.52051067,2779.5,2779.4,5.57385068]
[1645860678951,1.55252483,2779.5,2779.4,5.57385068]
[1645860698360,1.55148633,2779.5,2779.4,5.87385068]
[1645860698958,1.55137081,2779.5,2779.4,5.87385068]
[1645860701892,1.55137081,2779.5,2779.4,7.2872965]
[1645860707657,0.03097566,2779.5,2779.4,7.2872965]
[1645860708457,0.03632566,2779.5,2779.4,7.2872965]
[1645860710809,0.03532566,2779.5,2779.4,7.2872965]
[1645860716360,0.00438185,2779.7,2779.5,0.00347434]